[Event "Kadrioru MK Open A"]
[Site "Tallinn, Paul Keres Chess House, Estonia"]
[Date "2023.02.11"]
[Round "2.3"]
[White "Medar, Marti"]
[Black "Petrov, Dmitri"]
[Result "1/2-1/2"]
[TimeControl "90 minutes with 30 second increment from move 1"]
[WhiteElo "2063"]
[BlackElo "2246"]

1. c4 {

[%clk 01:30:44]

} {

[%emt 00:00:14]

} c5 {

[%clk 01:27:24]

} {

[%emt 00:03:35]

} 2. g3 {

[%clk 01:30:42]

} {

[%emt 00:00:32]

} Nc6 {

[%clk 01:27:34]

} {

[%emt 00:00:22]

} 3. Bg2 {

[%clk 01:30:46]

} {

[%emt 00:00:26]

} g6 {

[%clk 01:27:33]

} {

[%emt 00:00:31]

} 4. Nc3 {

[%clk 01:30:43]

} {

[%emt 00:00:32]

} Bg7 {

[%clk 01:27:52]

} {

[%emt 00:00:11]

} 5. a3 {

[%clk 01:30:00]

} {

[%emt 00:01:13]

} e5 {

[%clk 01:27:54]

} {

[%emt 00:00:28]

} 6. d3 {

[%clk 01:29:03]

} {

[%emt 00:01:27]

} Nge7 {

[%clk 01:27:59]

} {

[%emt 00:00:24]

} 7. Rb1 {

[%clk 01:27:21]

} {

[%emt 00:02:13]

} a5 {

[%clk 01:19:28]

} {

[%emt 00:09:01]

} 8. Nf3 {

[%clk 01:27:16]

} {

[%emt 00:00:35]

} O-O {

[%clk 01:19:49]

} {

[%emt 00:00:08]

} 9. O-O {

[%clk 01:18:14]

} {

[%emt 00:09:30]

} d6 {

[%clk 01:17:06]

} {

[%emt 00:03:15]

} 10. Ne1 {

[%clk 01:17:09]

} {

[%emt 00:01:35]

} Be6 {

[%clk 01:16:51]

} {

[%emt 00:00:45]

} 11. Nc2 {

[%clk 01:17:20]

} {

[%emt 00:00:19]

} d5 {

[%clk 01:14:20]

} {

[%emt 00:03:01]

} 12. cxd5 {

[%clk 01:13:24]

} {

[%emt 00:04:27]

} Nxd5 {

[%clk 01:14:45]

} {

[%emt 00:00:05]

} 13. Ne4 {

[%clk 01:08:16]

} {

[%emt 00:05:37]

} b6 {

[%clk 01:13:26]

} {

[%emt 00:01:49]

} 14. Ng5 {

[%clk 00:58:32]

} {

[%emt 00:10:14]

} Bc8 {

[%clk 01:10:58]

} {

[%emt 00:02:59]

} 15. Ne3 {

[%clk 00:51:53]

} {

[%emt 00:07:08]

} Nce7 {

[%clk 01:09:02]

} {

[%emt 00:02:26]

} 16. Nxd5 {

[%clk 00:42:52]

} {

[%emt 00:09:32]

} Nxd5 {

[%clk 01:09:24]

} {

[%emt 00:00:08]

} 17. Qb3 {

[%clk 00:42:59]

} {

[%emt 00:00:22]

} Bb7 {

[%clk 01:09:37]

} {

[%emt 00:00:18]

} 18. Bd2 {

[%clk 00:42:10]

} {

[%emt 00:01:18]

} Rb8 {

[%clk 00:57:26]

} {

[%emt 00:12:41]

} 19. Rfc1 {

[%clk 00:41:21]

} {

[%emt 00:01:20]

} h6 {

[%clk 00:55:23]

} {

[%emt 00:02:33]

} 20. Ne4 {

[%clk 00:40:52]

} {

[%emt 00:00:59]

} Nc7 {

[%clk 00:55:34]

} {

[%emt 00:00:19]

} 21. Nc3 {

[%clk 00:25:28]

} {

[%emt 00:15:55]

} Bxg2 {

[%clk 00:54:32]

} {

[%emt 00:01:32]

} 22. Kxg2 {

[%clk 00:25:56]

} {

[%emt 00:00:02]

} Qd7 {

[%clk 00:54:25]

} {

[%emt 00:00:36]

} 23. Qa4 {

[%clk 00:22:29]

} {

[%emt 00:03:57]

} Rfd8 {

[%clk 00:47:43]

} {

[%emt 00:07:12]

} 24. Qxd7 {

[%clk 00:19:10]

} {

[%emt 00:03:50]

} Rxd7 {

[%clk 00:47:45]

} {

[%emt 00:00:28]

} 25. Be3 {

[%clk 00:19:04]

} {

[%emt 00:00:35]

} Bf8 {

[%clk 00:46:51]

} {

[%emt 00:01:24]

} 26. Ne4 {

[%clk 00:14:39]

} {

[%emt 00:04:55]

} Nd5 {

[%clk 00:47:05]

} {

[%emt 00:00:15]

} 27. Nd2 {

[%clk 00:13:05]

} {

[%emt 00:02:04]

} f5 {

[%clk 00:33:32]

} {

[%emt 00:14:03]

} 28. Nc4 {

[%clk 00:12:59]

} {

[%emt 00:00:36]

} Re8 {

[%clk 00:33:43]

} {

[%emt 00:00:19]

} 29. Bd2 {

[%clk 00:11:13]

} {

[%emt 00:02:17]

} Re6 {

[%clk 00:30:23]

} {

[%emt 00:03:49]

} 30. Be1 {

[%clk 00:10:57]

} {

[%emt 00:00:46]

} g5 {

[%clk 00:15:46]

} {

[%emt 00:15:06]

} 31. e4 {

[%clk 00:07:50]

} {

[%emt 00:03:37]

} Ne7 {

[%clk 00:14:46]

} {

[%emt 00:01:30]

} 32. Rd1 {

[%clk 00:07:00]

} {

[%emt 00:01:21]

} a4 {

[%clk 00:14:23]

} {

[%emt 00:00:52]

} 33. Bc3 {

[%clk 00:07:18]

} {

[%emt 00:00:12]

} Bg7 {

[%clk 00:14:35]

} {

[%emt 00:00:18]

} 34. exf5 {

[%clk 00:02:09]

} {

[%emt 00:05:40]

} Nxf5 {

[%clk 00:15:00]

} {

[%emt 00:00:05]

} 35. Kf3 {

[%clk 00:01:55]

} {

[%emt 00:00:44]

} b5 {

[%clk 00:14:03]

} {

[%emt 00:01:27]

} 36. Ne3 {

[%clk 00:01:51]

} {

[%emt 00:00:35]

} Nd4+ {

[%clk 00:08:38]

} {

[%emt 00:05:55]

} 37. Ke4 {

[%clk 00:01:36]

} {

[%emt 00:00:45]

} Nc6 {

[%clk 00:08:40]

} {

[%emt 00:00:29]

} 38. Nf5 {

[%clk 00:01:32]

} {

[%emt 00:00:33]

} Bf8 {

[%clk 00:08:50]

} {

[%emt 00:00:20]

} 39. Rbc1 {

[%clk 00:01:24]

} {

[%emt 00:00:38]

} Nd4 {

[%clk 00:07:44]

} {

[%emt 00:01:36]

} 40. Bxd4 {

[%clk 00:01:10]

} {

[%emt 00:00:44]

} exd4+ {

[%clk 00:08:10]

} {

[%emt 00:00:05]

} 41. Kf3 {

[%clk 00:01:26]

} {

[%emt 00:00:13]

} Rd5 {

[%clk 00:08:28]

} {

[%emt 00:00:12]

} 42. g4 {

[%clk 00:01:31]

} {

[%emt 00:00:25]

} Rde5 {

[%clk 00:08:55]

} {

[%emt 00:00:03]

} 43. Ng3 {

[%clk 00:01:22]

} {

[%emt 00:00:39]

} Rf6+ {

[%clk 00:08:57]

} {

[%emt 00:00:28]

} 44. Kg2 {

[%clk 00:01:40]

} {

[%emt 00:00:11]

} Rf4 {

[%clk 00:09:15]

} {

[%emt 00:00:13]

} 45. h3 {

[%clk 00:01:54]

} {

[%emt 00:00:16]

} Kf7 {

[%clk 00:09:24]

} {

[%emt 00:00:21]

} 46. Nh5 {

[%clk 00:01:38]

} {

[%emt 00:00:46]

} Re2 {

[%clk 00:09:46]

} {

[%emt 00:00:08]

} 47. Nxf4 {

[%clk 00:01:54]

} {

[%emt 00:00:14]

} gxf4 {

[%clk 00:10:12]

} {

[%emt 00:00:04]

} 48. Rb1 {

[%clk 00:02:06]

} {

[%emt 00:00:18]

} b4 {

[%clk 00:10:01]

} {

[%emt 00:00:41]

} 49. Kf3 {

[%clk 00:02:04]

} {

[%emt 00:00:31]

} Rc2 {

[%clk 00:10:25]

} {

[%emt 00:00:06]

} 50. Rdc1 {

[%clk 00:02:18]

} {

[%emt 00:00:16]

} Rd2 {

[%clk 00:10:50]

} {

[%emt 00:00:05]

} 51. Rd1 {

[%clk 00:02:43]

} {

[%emt 00:00:05]

} Rc2 {

[%clk 00:11:08]

} {

[%emt 00:00:12]

} 52. Rdc1 {

[%clk 00:02:22]

} {

[%emt 00:00:51]

} Rd2 {

[%clk 00:11:32]

} {

[%emt 00:00:06]

} 53. Rd1 {

[%clk 00:02:50]

} {

[%emt 00:00:03]

} 1/2-1/2

[Event "Kadrioru MK Open A"]
[Site "Tallinn, Paul Keres Chess House, Estonia"]
[Date "2023.02.11"]
[Round "2.4"]
[White "Rychagov, Nikita"]
[Black "Valdats, Reinis"]
[Result "0-1"]
[TimeControl "90 minutes with 30 second increment from move 1"]
[WhiteElo "2192"]
[BlackElo "1736"]

1. e4 {

[%clk 01:30:58]

} {

[%emt 00:00:01]

} c5 {

[%clk 01:30:55]

} {

[%emt 00:00:05]

} 2. Nf3 {

[%clk 01:31:24]

} {

[%emt 00:00:03]

} e6 {

[%clk 01:31:19]

} {

[%emt 00:00:06]

} 3. d4 {

[%clk 01:31:51]

} {

[%emt 00:00:04]

} cxd4 {

[%clk 01:31:45]

} {

[%emt 00:00:04]

} 4. Nxd4 {

[%clk 01:32:17]

} {

[%emt 00:00:04]

} Nc6 {

[%clk 01:32:11]

} {

[%emt 00:00:04]

} 5. Nc3 {

[%clk 01:32:41]

} {

[%emt 00:00:05]

} Qc7 {

[%clk 01:32:36]

} {

[%emt 00:00:05]

} 6. Be3 {

[%clk 01:33:06]

} {

[%emt 00:00:05]

} a6 {

[%clk 01:33:01]

} {

[%emt 00:00:06]

} 7. a3 {

[%clk 01:33:31]

} {

[%emt 00:00:05]

} Nf6 {

[%clk 01:32:39]

} {

[%emt 00:00:52]

} 8. f4 {

[%clk 01:33:51]

} {

[%emt 00:00:10]

} Nxd4 {

[%clk 01:24:31]

} {

[%emt 00:08:38]

} 9. Qxd4 {

[%clk 01:33:56]

} {

[%emt 00:00:26]

} Ng4 {

[%clk 01:23:45]

} {

[%emt 00:01:15]

} 10. O-O-O {

[%clk 01:19:52]

} {

[%emt 00:14:34]

} Nxe3 {

[%clk 01:23:11]

} {

[%emt 00:01:05]

} 11. Qxe3 {

[%clk 01:20:14]

} {

[%emt 00:00:07]

} Bc5 {

[%clk 01:22:21]

} {

[%emt 00:01:20]

} 12. Qg3 {

[%clk 01:20:36]

} {

[%emt 00:00:08]

} O-O {

[%clk 01:22:42]

} {

[%emt 00:00:08]

} 13. e5 {

[%clk 01:03:18]

} {

[%emt 00:17:48]

} d5 {

[%clk 01:11:59]

} {

[%emt 00:11:13]

} 14. h4 {

[%clk 00:54:17]

} {

[%emt 00:09:32]

} f5 {

[%clk 00:45:08]

} {

[%emt 00:27:21]

} 15. h5 {

[%clk 00:53:56]

} {

[%emt 00:00:50]

} Bd7 {

[%clk 00:42:54]

} {

[%emt 00:02:44]

} 16. Rd2 {

[%clk 00:47:52]

} {

[%emt 00:06:33]

} Rac8 {

[%clk 00:42:10]

} {

[%emt 00:01:14]

} 17. Rh3 {

[%clk 00:48:14]

} {

[%emt 00:00:08]

} b5 {

[%clk 00:38:56]

} {

[%emt 00:03:45]

} 18. Na2 {

[%clk 00:45:47]

} {

[%emt 00:02:57]

} a5 {

[%clk 00:36:06]

} {

[%emt 00:03:20]

} 19. Qb3 {

[%clk 00:44:18]

} {

[%emt 00:01:59]

} b4 {

[%clk 00:32:10]

} {

[%emt 00:04:26]

} 20. axb4 {

[%clk 00:43:42]

} {

[%emt 00:01:05]

} axb4 {

[%clk 00:32:22]

} {

[%emt 00:00:18]

} 21. Kd1 {

[%clk 00:26:29]

} {

[%emt 00:17:43]

} Ra8 {

[%clk 00:25:38]

} {

[%emt 00:07:14]

} 22. h6 {

[%clk 00:25:38]

} {

[%emt 00:01:22]

} g6 {

[%clk 00:22:59]

} {

[%emt 00:03:09]

} 23. Nxb4 {

[%clk 00:20:33]

} {

[%emt 00:05:34]

} Bxb4 {

[%clk 00:19:05]

} {

[%emt 00:04:24]

} 24. Qxb4 {

[%clk 00:20:58]

} {

[%emt 00:00:05]

} Rfb8 {

[%clk 00:18:25]

} {

[%emt 00:01:10]

} 25. Rc3 {

[%clk 00:20:27]

} {

[%emt 00:01:01]

} Rxb4 {

[%clk 00:17:49]

} {

[%emt 00:01:06]

} 26. Rxc7 {

[%clk 00:20:53]

} {

[%emt 00:00:04]

} Ra1+ {

[%clk 00:18:01]

} {

[%emt 00:00:18]

} 27. Ke2 {

[%clk 00:21:20]

} {

[%emt 00:00:03]

} Bb5+ {

[%clk 00:17:52]

} {

[%emt 00:00:38]

} 28. Kf3 {

[%clk 00:20:54]

} {

[%emt 00:00:56]

} Rxf1+ {

[%clk 00:17:15]

} {

[%emt 00:01:08]

} 29. Kg3 {

[%clk 00:21:21]

} {

[%emt 00:00:03]

} Rfxf4 {

[%clk 00:12:40]

} {

[%emt 00:05:04]

} 30. Rc8+ {

[%clk 00:20:34]

} {

[%emt 00:01:18]

} Kf7 {

[%clk 00:13:02]

} {

[%emt 00:00:08]

} 31. Rc7+ {

[%clk 00:20:45]

} {

[%emt 00:00:19]

} Kf8 {

[%clk 00:13:04]

} {

[%emt 00:00:28]

} 32. Rd1 {

[%clk 00:20:20]

} {

[%emt 00:00:55]

} Rg4+ {

[%clk 00:11:40]

} {

[%emt 00:01:55]

} 33. Kf2 {

[%clk 00:20:47]

} {

[%emt 00:00:03]

} Rxb2 {

[%clk 00:11:08]

} {

[%emt 00:01:01]

} 34. Kf3 {

[%clk 00:16:09]

} {

[%emt 00:05:08]

} Rbb4 {

[%clk 00:10:30]

} {

[%emt 00:01:08]

} 35. g3 {

[%clk 00:16:23]

} {

[%emt 00:00:16]

} Rgc4 {

[%clk 00:10:11]

} {

[%emt 00:00:49]

} 36. Rxh7 {

[%clk 00:16:39]

} {

[%emt 00:00:13]

} g5 {

[%clk 00:07:17]

} {

[%emt 00:03:24]

} 37. Ra1 {

[%clk 00:14:24]

} {

[%emt 00:02:45]

} Ra4 {

[%clk 00:03:58]

} {

[%emt 00:03:49]

} 38. Rb1 {

[%clk 00:14:51]

} {

[%emt 00:00:03]

} g4+ {

[%clk 00:04:10]

} {

[%emt 00:00:18]

} 39. Ke3 {

[%clk 00:15:06]

} {

[%emt 00:00:15]

} Re4+ {

[%clk 00:03:21]

} {

[%emt 00:01:19]

} 40. Kd2 {

[%clk 00:15:35]

} {

[%emt 00:00:01]

} Re2+ {

[%clk 00:02:49]

} {

[%emt 00:01:02]

} 41. Kc3 {

[%clk 00:15:50]

} {

[%emt 00:00:15]

} Rc4+ {

[%clk 00:03:10]

} {

[%emt 00:00:09]

} 42. Kb3 {

[%clk 00:16:06]

} {

[%emt 00:00:14]

} Re3+ {

[%clk 00:02:19]

} {

[%emt 00:01:22]

} 43. c3 {

[%clk 00:16:11]

} {

[%emt 00:00:25]

} Rexc3+ {

[%clk 00:02:14]

} {

[%emt 00:00:34]

} 44. Kb2 {

[%clk 00:16:35]

} {

[%emt 00:00:06]

} Rb4+ {

[%clk 00:01:41]

} {

[%emt 00:01:03]

} 45. Kxc3 {

[%clk 00:17:02]

} {

[%emt 00:00:03]

} Rxb1 {

[%clk 00:02:06]

} {

[%emt 00:00:05]

} 46. Rb7 {

[%clk 00:17:09]

} {

[%emt 00:00:23]

} Kg8 {

[%clk 00:02:08]

} {

[%emt 00:00:29]

} 47. Kd4 {

[%clk 00:17:26]

} {

[%emt 00:00:13]

} Rd1+ {

[%clk 00:01:23]

} {

[%emt 00:01:15]

} 48. Kc5 {

[%clk 00:17:51]

} {

[%emt 00:00:04]

} Bc4 {

[%clk 00:01:45]

} {

[%emt 00:00:08]

} 49. Kd6 {

[%clk 00:17:53]

} {

[%emt 00:00:28]

} d4 {

[%clk 00:01:41]

} {

[%emt 00:00:34]

} 50. Ke7 {

[%clk 00:17:33]

} {

[%emt 00:00:49]

} Ra1 {

[%clk 00:01:01]

} {

[%emt 00:01:10]

} 51. Rb4 {

[%clk 00:14:51]

} {

[%emt 00:03:12]

} Bd5 {

[%clk 00:00:55]

} {

[%emt 00:00:36]

} 52. Rxd4 {

[%clk 00:15:16]

} {

[%emt 00:00:05]

} Kh7 {

[%clk 00:01:12]

} {

[%emt 00:00:13]

} 53. Kf6 {

[%clk 00:15:01]

} {

[%emt 00:00:45]

} Kxh6 {

[%clk 00:00:59]

} {

[%emt 00:00:43]

} 54. Rb4 {

[%clk 00:12:33]

} {

[%emt 00:02:57]

} Ra8 {

[%clk 00:01:18]

} {

[%emt 00:00:11]

} 55. Rb2 {

[%clk 00:12:46]

} {

[%emt 00:00:18]

} Kh7 {

[%clk 00:01:43]

} {

[%emt 00:00:06]

} 56. Rh2+ {

[%clk 00:12:57]

} {

[%emt 00:00:19]

} Kg8 {

[%clk 00:02:08]

} {

[%emt 00:00:04]

} 57. Kg6 {

[%clk 00:13:07]

} {

[%emt 00:00:20]

} Kf8 {

[%clk 00:01:25]

} {

[%emt 00:01:14]

} 58. Kf6 {

[%clk 00:13:14]

} {

[%emt 00:00:23]

} Ke8 {

[%clk 00:01:46]

} {

[%emt 00:00:08]

} 59. Rh7 {

[%clk 00:13:39]

} {

[%emt 00:00:05]

} Kd8 {

[%clk 00:01:38]

} {

[%emt 00:00:39]

} 60. Rh8+ {

[%clk 00:13:53]

} {

[%emt 00:00:15]

} Kd7 {

[%clk 00:01:54]

} {

[%emt 00:00:15]

} 0-1

[Event "Kadrioru MK Open A"]
[Site "Tallinn, Paul Keres Chess House, Estonia"]
[Date "2023.02.11"]
[Round "3.1"]
[White "Andrijashkin, Deniss"]
[Black "Pedoson, Georg Aleksander"]
[Result "1-0"]
[TimeControl "90 minutes with 30 second increment from move 1"]
[WhiteElo "2132"]
[BlackElo "2253"]

1. d4 {

[%clk 01:28:02]

} {

[%emt 00:02:53]

} Nf6 {

[%clk 01:30:30]

} {

[%emt 00:00:35]

} 2. c4 {

[%clk 01:28:21]

} {

[%emt 00:00:10]

} g6 {

[%clk 01:30:51]

} {

[%emt 00:00:10]

} 3. h4 {

[%clk 01:28:47]

} {

[%emt 00:00:04]

} h6 {

[%clk 01:22:15]

} {

[%emt 00:09:06]

} 4. Nc3 {

[%clk 01:28:19]

} {

[%emt 00:00:57]

} d5 {

[%clk 01:21:10]

} {

[%emt 00:01:35]

} 5. h5 {

[%clk 01:26:35]

} {

[%emt 00:02:14]

} g5 {

[%clk 01:19:40]

} {

[%emt 00:02:01]

} 6. Nf3 {

[%clk 01:18:37]

} {

[%emt 00:08:27]

} Bg7 {

[%clk 01:09:32]

} {

[%emt 00:10:38]

} 7. cxd5 {

[%clk 00:47:27]

} {

[%emt 00:31:40]

} Nxd5 {

[%clk 01:09:49]

} {

[%emt 00:00:12]

} 8. e4 {

[%clk 00:47:46]

} {

[%emt 00:00:10]

} Nxc3 {

[%clk 01:06:49]

} {

[%emt 00:03:30]

} 9. bxc3 {

[%clk 00:46:34]

} {

[%emt 00:01:43]

} c5 {

[%clk 01:01:46]

} {

[%emt 00:05:32]

} 10. Bc4 {

[%clk 00:32:33]

} {

[%emt 00:14:31]

} g4 {

[%clk 00:54:28]

} {

[%emt 00:07:49]

} 11. Qb3 {

[%clk 00:15:04]

} {

[%emt 00:17:59]

} e6 {

[%clk 00:44:44]

} {

[%emt 00:10:13]

} 12. Ne5 {

[%clk 00:11:59]

} {

[%emt 00:03:34]

} cxd4 {

[%clk 00:33:31]

} {

[%emt 00:11:44]

} 13. Nxg4 {

[%clk 00:11:05]

} {

[%emt 00:01:24]

} Nc6 {

[%clk 00:33:35]

} {

[%emt 00:00:27]

} 14. Bf4 {

[%clk 00:04:32]

} {

[%emt 00:07:02]

} Qa5 {

[%clk 00:31:58]

} {

[%emt 00:02:07]

} 15. e5 {

[%clk 00:03:14]

} {

[%emt 00:01:47]

} Bxe5 {

[%clk 00:27:57]

} {

[%emt 00:04:31]

} 16. Nxe5 {

[%clk 00:03:19]

} {

[%emt 00:00:26]

} Nxe5 {

[%clk 00:28:24]

} {

[%emt 00:00:03]

} 17. Bb5+ {

[%clk 00:03:10]

} {

[%emt 00:00:39]

} Nc6 {

[%clk 00:28:16]

} {

[%emt 00:00:37]

} 18. O-O {

[%clk 00:02:12]

} {

[%emt 00:01:29]

} Qxc3 {

[%clk 00:21:31]

} {

[%emt 00:07:15]

} 19. Qd1 {

[%clk 00:00:36]

} {

[%emt 00:02:06]

} Bd7 {

[%clk 00:20:46]

} {

[%emt 00:01:16]

} 20. Rc1 {

[%clk 00:00:34]

} {

[%emt 00:00:31]

} Qb4 {

[%clk 00:21:01]

} {

[%emt 00:00:15]

} 21. Rb1 {

[%clk 00:00:32]

} {

[%emt 00:00:33]

} Qc5 {

[%clk 00:21:17]

} {

[%emt 00:00:13]

} 22. Qa4 {

[%clk 00:00:31]

} {

[%emt 00:00:31]

} Rg8 {

[%clk 00:19:47]

} {

[%emt 00:01:59]

} 23. Rfc1 {

[%clk 00:00:36]

} {

[%emt 00:00:25]

} Qd5 {

[%clk 00:17:17]

} {

[%emt 00:03:01]

} 24. Bg3 {

[%clk 00:00:58]

} {

[%emt 00:00:08]

} d3 {

[%clk 00:07:28]

} {

[%emt 00:10:19]

} 25. Rd1 {

[%clk 00:00:34]

} {

[%emt 00:00:54]

} d2 {

[%clk 00:07:49]

} {

[%emt 00:00:10]

} 26. Qc2 {

[%clk 00:00:38]

} {

[%emt 00:00:20]

} Rd8 {

[%clk 00:03:04]

} {

[%emt 00:05:21]

} 27. Rxd2 {

[%clk 00:01:02]

} {

[%emt 00:00:05]

} Nd4 {

[%clk 00:03:30]

} {

[%emt 00:00:04]

} 28. Bxd7+ {

[%clk 00:00:32]

} {

[%emt 00:01:01]

} Qxd7 {

[%clk 00:03:52]

} {

[%emt 00:00:08]

} 29. Qh7 {

[%clk 00:00:31]

} {

[%emt 00:00:31]

} Nf3+ {

[%clk 00:03:08]

} {

[%emt 00:01:16]

} 30. Kh1 {

[%clk 00:00:32]

} {

[%emt 00:00:27]

} Qxd2 {

[%clk 00:02:27]

} {

[%emt 00:01:12]

} 31. Qxg8+ {

[%clk 00:00:53]

} {

[%emt 00:00:09]

} Ke7 {

[%clk 00:01:08]

} {

[%emt 00:01:50]

} 32. Rxb7+ {

[%clk 00:01:03]

} {

[%emt 00:00:20]

} Rd7 {

[%clk 00:01:13]

} {

[%emt 00:00:25]

} 33. Rxd7+ {

[%clk 00:01:24]

} {

[%emt 00:00:09]

} Qxd7 {

[%clk 00:01:37]

} {

[%emt 00:00:07]

} 34. gxf3 {

[%clk 00:01:48]

} {

[%emt 00:00:06]

} Qa4 {

[%clk 00:01:59]

} {

[%emt 00:00:08]

} 35. Qg7 {

[%clk 00:01:12]

} {

[%emt 00:01:02]

} 1-0

[Event "Kadrioru MK Open A"]
[Site "Tallinn, Paul Keres Chess House, Estonia"]
[Date "2023.02.11"]
[Round "3.2"]
[White "Valdats, Reinis"]
[Black "Neff, Sergei"]
[Result "1-0"]
[TimeControl "90 minutes with 30 second increment from move 1"]
[WhiteElo "1736"]
[BlackElo "2159"]

1. e4 {

[%clk 01:30:58]

} {

[%emt 00:00:01]

} c5 {

[%clk 01:30:15]

} {

[%emt 00:00:45]

} 2. Nf3 {

[%clk 01:31:07]

} {

[%emt 00:00:12]

} Nc6 {

[%clk 01:30:42]

} {

[%emt 00:00:12]

} 3. d4 {

[%clk 01:31:30]

} {

[%emt 00:00:08]

} cxd4 {

[%clk 01:31:01]

} {

[%emt 00:00:11]

} 4. Nxd4 {

[%clk 01:31:56]

} {

[%emt 00:00:04]

} Nf6 {

[%clk 01:31:17]

} {

[%emt 00:00:14]

} 5. Nc3 {

[%clk 01:32:19]

} {

[%emt 00:00:07]

} e5 {

[%clk 01:31:34]

} {

[%emt 00:00:13]

} 6. Ndb5 {

[%clk 01:32:45]

} {

[%emt 00:00:04]

} h6 {

[%clk 01:31:50]

} {

[%emt 00:00:13]

} 7. Nd5 {

[%clk 01:29:31]

} {

[%emt 00:03:45]

} Nxd5 {

[%clk 01:31:30]

} {

[%emt 00:00:50]

} 8. exd5 {

[%clk 01:29:50]

} {

[%emt 00:00:10]

} a6 {

[%clk 01:31:48]

} {

[%emt 00:00:12]

} 9. dxc6 {

[%clk 01:27:21]

} {

[%emt 00:03:00]

} axb5 {

[%clk 01:32:08]

} {

[%emt 00:00:11]

} 10. cxd7+ {

[%clk 01:27:30]

} {

[%emt 00:00:20]

} Bxd7 {

[%clk 01:32:34]

} {

[%emt 00:00:04]

} 11. Qd5 {

[%clk 01:25:32]

} {

[%emt 00:02:28]

} Qc7 {

[%clk 01:32:52]

} {

[%emt 00:00:12]

} 12. c3 {

[%clk 01:21:10]

} {

[%emt 00:04:53]

} b4 {

[%clk 01:19:31]

} {

[%emt 00:13:51]

} 13. Bd2 {

[%clk 01:16:43]

} {

[%emt 00:04:56]

} Ra5 {

[%clk 01:08:46]

} {

[%emt 00:11:15]

} 14. Qf3 {

[%clk 01:13:29]

} {

[%emt 00:03:45]

} e4 {

[%clk 01:00:24]

} {

[%emt 00:08:52]

} 15. Qe3 {

[%clk 01:05:34]

} {

[%emt 00:08:24]

} b3 {

[%clk 00:58:34]

} {

[%emt 00:02:19]

} 16. a3 {

[%clk 01:03:30]

} {

[%emt 00:02:34]

} Bxa3 {

[%clk 00:37:26]

} {

[%emt 00:21:38]

} 17. bxa3 {

[%clk 00:49:15]

} {

[%emt 00:14:46]

} b2 {

[%clk 00:35:10]

} {

[%emt 00:02:45]

} 18. Rb1 {

[%clk 00:49:19]

} {

[%emt 00:00:26]

} Rxa3 {

[%clk 00:34:38]

} {

[%emt 00:01:02]

} 19. Rxb2 {

[%clk 00:43:26]

} {

[%emt 00:06:23]

} Ra1+ {

[%clk 00:31:10]

} {

[%emt 00:03:58]

} 20. Bc1 {

[%clk 00:43:35]

} {

[%emt 00:00:21]

} f5 {

[%clk 00:28:34]

} {

[%emt 00:03:06]

} 21. Be2 {

[%clk 00:38:29]

} {

[%emt 00:05:36]

} O-O {

[%clk 00:23:49]

} {

[%emt 00:05:15]

} 22. O-O {

[%clk 00:38:13]

} {

[%emt 00:00:46]

} Bc6 {

[%clk 00:23:56]

} {

[%emt 00:00:24]

} 23. Qf4 {

[%clk 00:34:38]

} {

[%emt 00:04:05]

} Qe7 {

[%clk 00:21:05]

} {

[%emt 00:03:21]

} 24. h4 {

[%clk 00:29:18]

} {

[%emt 00:05:51]

} Qf6 {

[%clk 00:20:34]

} {

[%emt 00:01:00]

} 25. Rb3 {

[%clk 00:26:48]

} {

[%emt 00:03:00]

} Rc8 {

[%clk 00:17:22]

} {

[%emt 00:03:42]

} 26. Be3 {

[%clk 00:25:13]

} {

[%emt 00:02:05]

} Rca8 {

[%clk 00:13:45]

} {

[%emt 00:04:07]

} 27. Bd4 {

[%clk 00:13:47]

} {

[%emt 00:11:55]

} Qf7 {

[%clk 00:13:51]

} {

[%emt 00:00:25]

} 28. Rbb1 {

[%clk 00:13:23]

} {

[%emt 00:00:55]

} R1a5 {

[%clk 00:11:07]

} {

[%emt 00:03:13]

} 29. Rfd1 {

[%clk 00:12:20]

} {

[%emt 00:01:32]

} Kh7 {

[%clk 00:11:16]

} {

[%emt 00:00:21]

} 30. Rb2 {

[%clk 00:09:52]

} {

[%emt 00:02:59]

} Rg8 {

[%clk 00:10:32]

} {

[%emt 00:01:13]

} 31. Rdb1 {

[%clk 00:09:49]

} {

[%emt 00:00:34]

} g5 {

[%clk 00:06:05]

} {

[%emt 00:04:56]

} 32. hxg5 {

[%clk 00:09:48]

} {

[%emt 00:00:31]

} Rxg5 {

[%clk 00:05:58]

} {

[%emt 00:00:37]

} 33. Bb5 {

[%clk 00:05:23]

} {

[%emt 00:04:54]

} Bd5 {

[%clk 00:04:10]

} {

[%emt 00:02:19]

} 34. Bc4 {

[%clk 00:04:57]

} {

[%emt 00:00:56]

} b5 {

[%clk 00:02:47]

} {

[%emt 00:01:53]

} 35. Bxd5 {

[%clk 00:04:09]

} {

[%emt 00:01:18]

} Qxd5 {

[%clk 00:03:16]

} {

[%emt 00:00:01]

} 36. Qe5 {

[%clk 00:04:13]

} {

[%emt 00:00:26]

} Qxe5 {

[%clk 00:03:25]

} {

[%emt 00:00:21]

} 37. Bxe5 {

[%clk 00:04:41]

} {

[%emt 00:00:01]

} b4 {

[%clk 00:03:54]

} {

[%emt 00:00:01]

} 38. Bf6 {

[%clk 00:02:30]

} {

[%emt 00:02:41]

} 1-0